fUST/lending_fUST_20260625
["ID","MTS","AMOUNT","RATE_DAILY","PERIOD"]
[426372519,1782331748000,-500.0,0.00019999,2]
[426372517,1782331748000,-500.0,0.00019999,2]
[426372522,1782331748000,-238.06279266,0.00019999,2]
[426372520,1782331748000,-500.0,0.00019999,2]
[426372521,1782331748000,-500.0,0.00019999,2]
[426372524,1782331748000,-53074.46151292,0.0002,2]
[426372523,1782331748000,-500.0,0.00019999,2]
[426372525,1782331749000,-116159.264809,0.0002,2]
[426372527,1782331752000,-26915.07378,0.0002,2]
[426372526,1782331752000,-113883.169239,0.0002,2]
[426372540,1782331757000,-500.0,0.00025,2]
[426372539,1782331757000,-180.131343,0.00024689,2]
[426372536,1782331757000,-180.131343,0.00023258,2]
[426372535,1782331757000,-270.75525679,0.00022798,2]
[426372538,1782331757000,-163.602384,0.00023909,2]
[426372529,1782331757000,-825.63060136,0.00020032,2]
[426372531,1782331757000,-180.131343,0.00020396,2]
[426372532,1782331757000,-276.86554592,0.00020877,7]
[426372542,1782331757000,-3000.0,0.0002541,2]
[426372533,1782331757000,-180.131343,0.00021827,2]
[426372530,1782331757000,-276.8655459,0.00020132,7]
[426372528,1782331757000,-80205.36359301,0.0002,2]
[426372534,1782331757000,-744.54661754,0.000226,2]
[426372541,1782331757000,-3000.0,0.000254,2]
[426372537,1782331757000,-175.372,0.00023597,4]
[426372543,1782331757000,-3000.0,0.0002542,2]
[426372544,1782331757000,-3000.0,0.0002543,2]
[426372557,1782331757000,-1449.66140448,0.0002556,2]
[426372555,1782331757000,-3000.0,0.0002554,2]
[426372554,1782331757000,-3000.0,0.0002553,2]
[426372553,1782331757000,-3000.0,0.0002552,2]
[426372552,1782331757000,-3000.0,0.0002551,2]
[426372556,1782331757000,-3000.0,0.0002555,2]
[426372550,1782331757000,-3000.0,0.0002549,2]
[426372548,1782331757000,-3000.0,0.0002547,2]
[426372549,1782331757000,-3000.0,0.0002548,2]
[426372546,1782331757000,-3000.0,0.0002545,2]
[426372547,1782331757000,-3000.0,0.0002546,2]
[426372545,1782331757000,-3000.0,0.0002544,2]
[426372551,1782331757000,-3000.0,0.000255,2]
[426372569,1782331767000,-3000.0,0.0002566,2]
[426372579,1782331767000,-3000.0,0.0002568,2]
[426372578,1782331767000,-3000.0,0.0002567,2]
[426372575,1782331767000,-487.0,0.0002566,2]
[426372576,1782331767000,-487.0,0.0002566,2]
[426372572,1782331767000,-487.0,0.0002566,2]
[426372571,1782331767000,-487.0,0.0002566,2]
[426372570,1782331767000,-487.0,0.0002566,2]
[426372573,1782331767000,-487.0,0.0002566,2]
[426372563,1782331767000,-3000.0,0.000256,2]
[426372566,1782331767000,-3000.0,0.0002563,2]
[426372568,1782331767000,-3000.0,0.0002565,2]
[426372567,1782331767000,-3000.0,0.0002564,2]
[426372564,1782331767000,-3000.0,0.0002561,2]
[426372560,1782331767000,-3000.0,0.0002557,2]
[426372562,1782331767000,-3000.0,0.0002559,2]
[426372561,1782331767000,-3000.0,0.0002558,2]
[426372559,1782331767000,-1550.33859552,0.0002556,2]
[426372577,1782331767000,-876.5,0.0002566,2]
[426372565,1782331767000,-3000.0,0.0002562,2]
[426372581,1782331767000,-3000.0,0.000257,2]
[426372574,1782331767000,-487.0,0.0002566,2]
[426372584,1782331767000,-3000.0,0.0002573,2]
[426372601,1782331767000,-1776.9,0.00027945,2]
[426372600,1782331767000,-1776.9,0.00027671,2]
[426372599,1782331767000,-1776.9,0.00027397,2]
[426372598,1782331767000,-1776.9,0.00027123,2]
[426372597,1782331767000,-1776.9,0.00026849,2]
[426372594,1782331767000,-4066.807709,0.0002583,2]
[426372596,1782331767000,-1776.9,0.00026575,2]
[426372595,1782331767000,-1776.9,0.00026301,2]
[426372593,1782331767000,-3000.0,0.0002582,2]
[426372592,1782331767000,-3000.0,0.0002581,2]
[426372580,1782331767000,-3000.0,0.0002569,2]
[426372591,1782331767000,-3000.0,0.000258,2]
[426372588,1782331767000,-3000.0,0.0002577,2]
[426372585,1782331767000,-3000.0,0.0002574,2]
[426372589,1782331767000,-3000.0,0.0002578,2]
[426372602,1782331767000,-30055.58009548,0.00028202,2]
[426372587,1782331767000,-3000.0,0.0002576,2]
[426372586,1782331767000,-3000.0,0.0002575,2]
[426372583,1782331767000,-3000.0,0.0002572,2]
[426372582,1782331767000,-3000.0,0.0002571,2]
[426372590,1782331767000,-3000.0,0.0002579,2]
[426372641,1782331772000,-1737.491066,0.00028777,2]
[426372640,1782331772000,-233.29536,0.00028777,7]
[426372643,1782331772000,-1737.491066,0.00028777,2]
[426372650,1782331772000,-2296.874996,0.00028777,7]
[426372645,1782331772000,-1737.491066,0.00028777,2]
[426372647,1782331772000,-1737.491066,0.00028777,2]
[426372646,1782331772000,-1737.491066,0.00028777,2]
[426372642,1782331772000,-1737.491066,0.00028777,2]
[426372644,1782331772000,-1737.491066,0.00028777,2]
[426372639,1782331772000,-151.0,0.00028777,7]
[426372635,1782331772000,-1776.9,0.00028493,2]
[426372637,1782331772000,-154.31581,0.00028777,7]
[426372636,1782331772000,-1776.9,0.00028767,2]
[426372634,1782331772000,-160.0,0.00028344,2]
[426372633,1782331772000,-160.0,0.00028344,2]
[426372629,1782331772000,-27266.68082252,0.00028202,2]
[426372631,1782331772000,-1776.9,0.00028219,2]
[426372632,1782331772000,-160.0,0.00028344,2]
[426372630,1782331772000,-181.256568,0.00028202,14]
[426372648,1782331772000,-1737.491066,0.00028777,2]
[426372638,1782331772000,-151.0,0.00028777,7]
[426372651,1782331772000,-2296.874996,0.00028777,7]
[426372654,1782331772000,-2296.874996,0.00028777,7]
[426372653,1782331772000,-2296.874996,0.00028777,7]
[426372674,1782331772000,-374.499847,0.00028777,7]
[426372673,1782331772000,-374.499847,0.00028777,7]
[426372672,1782331772000,-374.499847,0.00028777,7]
[426372649,1782331772000,-2296.874996,0.00028777,7]
[426372671,1782331772000,-374.499847,0.00028777,7]
[426372669,1782331772000,-407.127215,0.00028777,7]
[426372668,1782331772000,-407.127215,0.00028777,7]
[426372667,1782331772000,-407.127215,0.00028777,7]
[426372665,1782331772000,-407.127215,0.00028777,7]
[426372666,1782331772000,-407.127215,0.00028777,7]
[426372664,1782331772000,-407.127215,0.00028777,7]
[426372670,1782331772000,-407.127215,0.00028777,7]
[426372663,1782331772000,-407.127215,0.00028777,7]
[426372660,1782331772000,-151.0,0.00028777,7]
[426372661,1782331772000,-151.0,0.00028777,7]
[426372659,1782331772000,-151.0,0.00028777,7]
[426372657,1782331772000,-151.0,0.00028777,7]
[426372658,1782331772000,-151.0,0.00028777,7]
[426372655,1782331772000,-2296.874996,0.00028777,7]
[426372656,1782331772000,-2296.874996,0.00028777,7]
[426372652,1782331772000,-2296.874996,0.00028777,7]
[426372662,1782331772000,-151.0,0.00028777,7]
[426372684,1782331773000,-2702.467872,0.00028777,7]
[426372685,1782331773000,-2702.467872,0.00028777,7]
[426372690,1782331773000,-8890.202673,0.00028777,7]
[426372686,1782331773000,-2702.467872,0.00028777,7]
[426372681,1782331773000,-2702.467872,0.00028777,7]
[426372687,1782331773000,-2702.467872,0.00028777,7]
[426372683,1782331773000,-2702.467872,0.00028777,7]
[426372676,1782331773000,-374.499847,0.00028777,7]
[426372679,1782331773000,-151.0,0.00028777,7]
[426372680,1782331773000,-151.0,0.00028777,7]
[426372678,1782331773000,-374.499847,0.00028777,7]
[426372677,1782331773000,-374.499847,0.00028777,7]
[426372675,1782331773000,-374.499847,0.00028777,7]
[426372689,1782331773000,-8890.202673,0.00028777,7]
[426372682,1782331773000,-2702.467872,0.00028777,7]
[426372691,1782331773000,-8890.202673,0.00028777,7]
[426372707,1782331773000,-1129.96737588,0.00028777,7]
[426372692,1782331773000,-8890.202673,0.00028777,7]
[426372688,1782331773000,-2702.467872,0.00028777,7]
[426372705,1782331773000,-3074.317037,0.00028777,7]
[426372706,1782331773000,-9600.0,0.00028777,7]
[426372703,1782331773000,-3074.317037,0.00028777,7]
[426372702,1782331773000,-3074.317037,0.00028777,7]
[426372701,1782331773000,-2979.25946052,0.00028777,7]
[426372700,1782331773000,-95.05757648,0.00028777,7]
[426372704,1782331773000,-3074.317037,0.00028777,7]
[426372698,1782331773000,-3074.317037,0.00028777,7]
[426372697,1782331773000,-3074.317037,0.00028777,7]
[426372696,1782331773000,-8890.202673,0.00028777,7]
[426372695,1782331773000,-8890.202673,0.00028777,7]
[426372694,1782331773000,-8890.202673,0.00028777,7]
[426372693,1782331773000,-8890.202673,0.00028777,7]
[426372699,1782331773000,-3074.317037,0.00028777,7]
[426372768,1782331832000,-433.45811007,0.00028777,7]
[426372941,1782331841000,-156.840219,0.00028777,7]
[426372942,1782331841000,-103.64161838,0.00028777,7]
[426372939,1782331841000,-226.99341215,0.00028777,7]
[426372935,1782331841000,-9600.0,0.00028777,7]
[426372944,1782331841000,-3618.056168,0.00028777,7]
[426372938,1782331841000,-9373.00658785,0.00028777,7]
[426372937,1782331841000,-4307.57454042,0.00028777,7]
[426372950,1782331841000,-3618.056168,0.00028777,7]
[426372936,1782331841000,-5292.42545958,0.00028777,7]
[426372940,1782331841000,-151.0,0.00028777,7]
[426372945,1782331841000,-3618.056168,0.00028777,7]
[426372947,1782331841000,-3618.056168,0.00028777,7]
[426372957,1782331841000,-151.0,0.00028777,7]
[426372958,1782331841000,-151.0,0.00028777,7]
[426372948,1782331841000,-3618.056168,0.00028777,7]
[426372943,1782331841000,-3514.41454962,0.00028777,7]
[426372934,1782331841000,-9600.0,0.00028777,7]
[426372917,1782331841000,-500.0,0.00028776,2]
[426372924,1782331841000,-500.0,0.00028776,2]
[426372960,1782331841000,-282.721845,0.00028777,7]
[426372910,1782331841000,-500.0,0.00028776,2]
[426372912,1782331841000,-500.0,0.00028776,2]
[426372916,1782331841000,-500.0,0.00028776,2]
[426372914,1782331841000,-167.18991407,0.00028776,2]
[426372930,1782331841000,-151.0,0.00028777,7]
[426372929,1782331841000,-8036.57451405,0.00028777,7]
[426372927,1782331841000,-500.0,0.00028776,2]
[426372933,1782331841000,-9600.0,0.00028777,7]
[426372931,1782331841000,-9600.0,0.00028777,7]
[426372932,1782331841000,-215.995759,0.00028777,7]
[426372922,1782331841000,-500.0,0.00028776,2]
[426372925,1782331841000,-416.64395486,0.00028776,2]
[426372919,1782331841000,-500.0,0.00028776,2]
[426372921,1782331841000,-500.0,0.00028776,2]
[426372926,1782331841000,-500.0,0.00028776,2]
[426372928,1782331841000,-500.0,0.00028776,2]
[426372952,1782331841000,-3618.056168,0.00028777,7]
[426372987,1782331841000,-500.0,0.00028777,2]
[426372949,1782331841000,-3618.056168,0.00028777,7]
[426372983,1782331841000,-4500.0,0.00028777,2]
[426372978,1782331841000,-6400.37483448,0.00028777,2]
[426372981,1782331841000,-771.71495539,0.00028777,2]
[426372976,1782331841000,-1582.43717662,0.00028777,2]
[426372982,1782331841000,-2920.0,0.00028777,2]
[426372985,1782331841000,-148619.26282549,0.00028777,2]
[426372979,1782331841000,-58216.2717684,0.00028777,2]
[426372986,1782331841000,-302.0,0.00028777,2]
[426372984,1782331841000,-3199.68923388,0.00028777,2]
[426372992,1782331841000,-633.82,0.00028777,11]
[426372990,1782331841000,-633.82,0.00028777,11]
[426372989,1782331841000,-633.82,0.00028777,11]
[426372991,1782331841000,-633.82,0.00028777,11]
[426372988,1782331841000,-633.82,0.00028777,11]
[426372959,1782331841000,-151.0,0.00028777,7]
[426372980,1782331841000,-4871.66643774,0.00028777,2]
[426372977,1782331841000,-52566.04363381,0.00028777,2]
[426372993,1782331841000,-633.82,0.00028777,11]
[426372970,1782331841000,-1378.124998,0.00028777,7]
[426372951,1782331841000,-3618.056168,0.00028777,7]
[426372972,1782331841000,-1378.124998,0.00028777,7]
[426372954,1782331841000,-3618.056168,0.00028777,7]
[426372955,1782331841000,-3618.056168,0.00028777,7]
[426372956,1782331841000,-151.0,0.00028777,7]
[426372961,1782331841000,-1378.124998,0.00028777,7]
[426372963,1782331841000,-1378.124998,0.00028777,7]
[426372966,1782331841000,-1378.124998,0.00028777,7]
[426372953,1782331841000,-3618.056168,0.00028777,7]
[426372965,1782331841000,-1378.124998,0.00028777,7]
[426372971,1782331841000,-1378.124998,0.00028777,7]
[426372975,1782331841000,-500.0,0.00028777,2]
[426372973,1782331841000,-1378.124998,0.00028777,7]
[426372967,1782331841000,-1378.124998,0.00028777,7]
[426372969,1782331841000,-1378.124998,0.00028777,7]
[426372968,1782331841000,-1378.124998,0.00028777,7]
[426372974,1782331841000,-1378.124998,0.00028777,7]
[426373035,1782331842000,-247.90856015,0.00034537,2]
[426373028,1782331842000,-151.71530937,0.00030427,6]
[426373033,1782331842000,-151.71530937,0.00032746,14]
[426373032,1782331842000,-151.71530937,0.00031949,12]
[426373048,1782331842000,-158.44656163,0.00035616,2]
[426373029,1782331842000,-151.71530937,0.00030789,8]
[426373030,1782331842000,-151.71530937,0.00031297,10]
[426373027,1782331842000,-151.71530937,0.00030209,4]
[426373025,1782331842000,-1776.94,0.00030137,2]
[426373039,1782331842000,-159.82504885,0.00035185,2]
[426373026,1782331842000,-151.7153094,0.00030137,2]
[426373031,1782331842000,-409.6917127,0.00031651,2]
[426373041,1782331842000,-600.0,0.00035478,2]
[426373042,1782331842000,-174.12296379,0.00035616,2]
[426373036,1782331842000,-151.71530937,0.00034776,18]
[426373038,1782331842000,-200.31539443,0.00035185,2]
[426373047,1782331842000,-332.47379726,0.00035616,2]
[426373037,1782331842000,-495.81712031,0.00035185,2]
[426373045,1782331842000,-163.81406406,0.00035616,2]
[426373043,1782331842000,-151.46656797,0.00035616,2]
[426373044,1782331842000,-194.12103089,0.00035616,2]
[426373046,1782331842000,-152.20036624,0.00035616,2]
[426373049,1782331842000,-189.10486093,0.00035616,2]
[426373058,1782331842000,-169.22030588,0.00035616,2]
[426373052,1782331842000,-156.955372,0.00035616,2]
[426373023,1782331842000,-1776.9,0.00029863,2]
[426373040,1782331842000,-1000.0,0.00035478,2]
[426373034,1782331842000,-151.71530937,0.00033689,16]
[426373003,1782331842000,-633.82,0.00028777,11]
[426373022,1782331842000,-300.0,0.00029863,2]
[426372994,1782331842000,-633.82,0.00028777,11]
[426372998,1782331842000,-633.82,0.00028777,11]
[426372996,1782331842000,-633.82,0.00028777,11]
[426372995,1782331842000,-633.82,0.00028777,11]
[426373000,1782331842000,-633.82,0.00028777,11]
[426372997,1782331842000,-633.82,0.00028777,11]
[426372999,1782331842000,-633.82,0.00028777,11]
[426373002,1782331842000,-633.82,0.00028777,11]
[426373013,1782331842000,-500.0,0.00028777,7]
[426373001,1782331842000,-633.82,0.00028777,11]
[426373004,1782331842000,-633.82,0.00028777,11]
[426373012,1782331842000,-500.0,0.00028777,7]
[426373008,1782331842000,-633.82,0.00028777,11]
[426373010,1782331842000,-633.82,0.00028777,11]
[426373005,1782331842000,-633.82,0.00028777,11]
[426373009,1782331842000,-633.82,0.00028777,11]
[426373007,1782331842000,-633.82,0.00028777,11]
[426373006,1782331842000,-633.82,0.00028777,11]
[426373011,1782331842000,-633.99811007,0.00028777,11]
[426373014,1782331842000,-562.56830551,0.00028777,7]
[426373017,1782331842000,-1776.9,0.00029041,2]
[426373015,1782331842000,-151.0,0.00028779,7]
[426373016,1782331842000,-151.0,0.00028779,7]
[426373018,1782331842000,-358.48024861,0.00029215,2]
[426373021,1782331842000,-164.778698,0.00029828,14]
[426373020,1782331842000,-1776.9,0.00029589,2]
[426373019,1782331842000,-1776.9,0.00029315,2]
[426373024,1782331842000,-1000.0,0.00030136,2]
[426373050,1782331842000,-167.39159445,0.00035616,2]
[426373071,1782331842000,-407.127215,0.0003705,7]
[426373055,1782331842000,-153.63522357,0.00035616,2]
[426373093,1782331842000,-9600.0,0.0003705,7]
[426373088,1782331842000,-3074.317037,0.0003705,7]
[426373094,1782331842000,-9600.0,0.0003705,7]
[426373090,1782331842000,-3074.317037,0.0003705,7]
[426373092,1782331842000,-9600.0,0.0003705,7]
[426373097,1782331842000,-3618.056168,0.0003705,7]
[426373099,1782331842000,-3618.056168,0.0003705,7]
[426373095,1782331842000,-9600.0,0.0003705,7]
[426373096,1782331842000,-3618.056168,0.0003705,7]
[426373101,1782331842000,-3618.056168,0.0003705,7]
[426373103,1782331842000,-151.0,0.0003705,7]
[426373105,1782331842000,-1378.124998,0.0003705,7]
[426373107,1782331842000,-1378.124998,0.0003705,7]
[426373110,1782331842000,-1378.124998,0.0003705,7]
[426373111,1782331842000,-1000.0,0.00037151,2]
[426373123,1782331842000,-472.55,0.000383,120]
[426373109,1782331842000,-1378.124998,0.0003705,7]
[426373114,1782331842000,-600.0,0.00037151,2]
[426373125,1782331842000,-218.0907598,0.00038525,5]
[426373119,1782331842000,-151.71530937,0.00037385,22]
[426373117,1782331842000,-230.0,0.00037151,2]
[426373127,1782331842000,-613.84626154,0.00038767,120]
[426373121,1782331842000,-217.285,0.00037704,120]
[426373130,1782331842000,-472.55,0.000388,120]
[426373135,1782331842000,-1010.90702154,0.00039,120]
[426373132,1782331842000,-151.71530937,0.00038908,24]
[426373134,1782331842000,-199.95196263,0.00039,120]
[426373087,1782331842000,-3074.317037,0.0003705,7]
[426373085,1782331842000,-8890.202673,0.0003705,7]
[426373051,1782331842000,-309.23182536,0.00035616,2]
[426373079,1782331842000,-2702.467872,0.0003705,7]
[426373054,1782331842000,-188.96851839,0.00035616,2]
[426373053,1782331842000,-152.03018827,0.00035616,2]
[426373057,1782331842000,-400.63078885,0.00035616,2]
[426373056,1782331842000,-743.72568046,0.00035616,2]
[426373061,1782331842000,-168.02249108,0.00035616,2]
[426373059,1782331842000,-319.6500977,0.00035616,2]
[426373062,1782331842000,-308.12222222,0.00035627,2]
[426373086,1782331842000,-3074.317037,0.0003705,7]
[426373067,1782331842000,-151.0,0.0003705,7]
[426373068,1782331842000,-407.127215,0.0003705,7]
[426373065,1782331842000,-151.71530937,0.00036008,20]
[426373070,1782331842000,-407.127215,0.0003705,7]
[426373064,1782331842000,-151.18065773,0.00035628,2]
[426373060,1782331842000,-362.45512058,0.00035616,2]
[426373063,1782331842000,-151.33801452,0.00035628,2]
[426373069,1782331842000,-407.127215,0.0003705,7]
[426373076,1782331842000,-222.682715,0.0003705,7]
[426373077,1782331842000,-2702.467872,0.0003705,7]
[426373073,1782331842000,-374.499847,0.0003705,7]
[426373078,1782331842000,-2702.467872,0.0003705,7]
[426373075,1782331842000,-374.499847,0.0003705,7]
[426373081,1782331842000,-2702.467872,0.0003705,7]
[426373084,1782331842000,-8890.202673,0.0003705,7]
[426373083,1782331842000,-8890.202673,0.0003705,7]
[426373082,1782331842000,-8890.202673,0.0003705,7]
[426373072,1782331842000,-374.499847,0.0003705,7]
[426373066,1782331842000,-151.0,0.0003705,7]
[426373074,1782331842000,-374.499847,0.0003705,7]
[426373186,1782331843000,-407.127215,0.00040444,120]
[426373177,1782331843000,-151.0,0.00040444,120]
[426373183,1782331843000,-1737.491066,0.00040444,2]
[426373178,1782331843000,-151.0,0.00040444,120]
[426373182,1782331843000,-1737.491066,0.00040444,2]
[426373168,1782331843000,-254.83417307,0.00040443,2]
[426373179,1782331843000,-1737.491066,0.00040444,2]
[426373172,1782331843000,-162.923879,0.00040444,120]
[426373169,1782331843000,-326.70440297,0.00040443,2]
[426373170,1782331843000,-327.37960208,0.00040443,2]
[426373176,1782331843000,-151.0,0.00040444,120]
[426373180,1782331843000,-1737.491066,0.00040444,2]
[426373192,1782331843000,-374.499847,0.00040444,120]
[426373185,1782331843000,-407.127215,0.00040444,120]
[426373188,1782331843000,-407.127215,0.00040444,120]
[426373187,1782331843000,-407.127215,0.00040444,120]
[426373197,1782331843000,-8890.202673,0.00040444,120]
[426373196,1782331843000,-2702.467872,0.00040444,120]
[426373198,1782331843000,-8890.202673,0.00040444,120]
[426373189,1782331843000,-374.499847,0.00040444,120]
[426373190,1782331843000,-374.499847,0.00040444,120]
[426373191,1782331843000,-374.499847,0.00040444,120]
[426373195,1782331843000,-2702.467872,0.00040444,120]
[426373194,1782331843000,-2702.467872,0.00040444,120]
[426373193,1782331843000,-2702.467872,0.00040444,120]
[426373171,1782331843000,-370312.7489,0.00040444,30]
[426373175,1782331843000,-151.0,0.00040444,120]
[426373167,1782331843000,-360.0,0.00040443,2]
[426373151,1782331843000,-1737.491066,0.00040143,2]
[426373164,1782331843000,-210.77155718,0.00040443,2]
[426373208,1782331843000,-9600.0,0.00040444,120]
[426373140,1782331843000,-162.380719,0.00039997,31]
[426373141,1782331843000,-168.3888056,0.00039997,31]
[426373143,1782331843000,-236.04333134,0.00039997,31]
[426373144,1782331843000,-159.20501688,0.00039997,31]
[426373145,1782331843000,-151.0,0.00040143,120]
[426373136,1782331843000,-472.55,0.000393,120]
[426373139,1782331843000,-156.587,0.00039997,31]
[426373137,1782331843000,-472.55,0.000398,120]
[426373138,1782331843000,-151.0,0.00039997,31]
[426373146,1782331843000,-151.0,0.00040143,120]
[426373149,1782331843000,-1737.491066,0.00040143,2]
[426373150,1782331843000,-1737.491066,0.00040143,2]
[426373148,1782331843000,-151.0,0.00040143,120]
[426373152,1782331843000,-1737.491066,0.00040143,2]
[426373160,1782331843000,-472.55,0.000403,120]
[426373161,1782331843000,-180.0,0.00040344,2]
[426373147,1782331843000,-178.601547,0.00040143,120]
[426373156,1782331843000,-199.95196263,0.000402,120]
[426373154,1782331843000,-151.0,0.000402,16]
[426373158,1782331843000,-1010.90702154,0.000402,120]
[426373159,1782331843000,-7764.00545769,0.00040244,2]
[426373163,1782331843000,-338.44028718,0.00040443,2]
[426373174,1782331843000,-151.0,0.00040444,120]
[426373173,1782331843000,-151.0,0.00040444,120]
[426373162,1782331843000,-270.0,0.00040443,2]
[426373165,1782331843000,-240.88177963,0.00040443,2]
[426373166,1782331843000,-376.37778068,0.00040443,2]
[426373200,1782331843000,-8890.202673,0.00040444,120]
[426373214,1782331843000,-151.0,0.00040444,120]
[426373203,1782331843000,-3074.317037,0.00040444,28]
[426373235,1782331843000,-16696.78426004,0.000424,120]
[426373237,1782331843000,-1010.90702154,0.000426,120]
[426373236,1782331843000,-199.95196263,0.000426,120]
[426373243,1782331843000,-1737.491066,0.000427,2]
[426373242,1782331843000,-1737.491066,0.000427,2]
[426373245,1782331843000,-1737.491058,0.000427,2]
[426373246,1782331843000,-407.127215,0.000427,120]
[426373240,1782331843000,-3237.98702791,0.000427,120]
[426373244,1782331843000,-1737.491066,0.000427,2]
[426373239,1782331843000,-1742.88512387,0.00042645,60]
[426373238,1782331843000,-746.95076737,0.00042645,60]
[426373241,1782331843000,-151.0,0.000427,120]
[426373248,1782331843000,-407.127215,0.000427,120]
[426373258,1782331843000,-8890.202673,0.000427,120]
[426373259,1782331843000,-4570.91750119,0.000427,120]
[426373206,1782331843000,-9600.0,0.00040444,120]
[426373249,1782331843000,-407.127209,0.000427,120]
[426373250,1782331843000,-374.499847,0.000427,120]
[426373253,1782331843000,-374.499846,0.000427,120]
[426373257,1782331843000,-2702.467863,0.000427,120]
[426373255,1782331843000,-2702.467872,0.000427,120]
[426373256,1782331843000,-2702.467872,0.000427,120]
[426373251,1782331843000,-374.499847,0.000427,120]
[426373254,1782331843000,-2702.467872,0.000427,120]
[426373252,1782331843000,-374.499847,0.000427,120]
[426373260,1782331843000,-4319.28517181,0.000427,120]
[426373261,1782331843000,-8890.202673,0.000427,120]
[426373231,1782331843000,-472.55,0.000418,120]
[426373232,1782331843000,-400.0,0.00042,120]
[426373247,1782331843000,-407.127215,0.000427,120]
[426373233,1782331843000,-472.55,0.000423,120]
[426373228,1782331843000,-2000.0,0.000414,120]
[426373209,1782331843000,-9600.0,0.00040444,120]
[426373210,1782331843000,-3618.056168,0.00040444,120]
[426373204,1782331843000,-3074.317037,0.00040444,28]
[426373212,1782331843000,-3618.056168,0.00040444,120]
[426373207,1782331843000,-9600.0,0.00040444,120]
[426373205,1782331843000,-3074.317037,0.00040444,28]
[426373199,1782331843000,-8890.202673,0.00040444,120]
[426373211,1782331843000,-3618.056168,0.00040444,120]
[426373224,1782331843000,-472.55,0.000408,120]
[426373215,1782331843000,-1378.124998,0.00040444,120]
[426373213,1782331843000,-3618.056178,0.00040444,120]
[426373216,1782331843000,-1378.124998,0.00040444,120]
[426373202,1782331843000,-3074.317037,0.00040444,28]
[426373222,1782331843000,-5907.260286,0.000405,2]
[426373226,1782331843000,-9728.98868269,0.000413,2]
[426373234,1782331843000,-151.71530937,0.00042387,28]
[426373218,1782331843000,-1378.124994,0.00040444,120]
[426373230,1782331843000,-1010.90702154,0.000414,120]
[426373229,1782331843000,-199.95196263,0.000414,120]
[426373225,1782331843000,-472.55,0.000413,120]
[426373227,1782331843000,-300.0,0.00041385,10]
[426373219,1782331843000,-151.0,0.00040444,120]
[426373220,1782331843000,-151.0,0.00040444,120]
[426373223,1782331843000,-151.71530937,0.00040575,26]
[426373221,1782331843000,-160.0,0.00040472,2]
[426373217,1782331843000,-1378.124998,0.00040444,120]
[426373286,1782331844000,-495.5,0.00044406,120]
[426373279,1782331844000,-199.95196263,0.000439,120]
[426373280,1782331844000,-1010.90702154,0.000439,120]
[426373281,1782331844000,-495.5,0.00043993,120]
[426373291,1782331844000,-886.15383924,0.00045,20]
[426373278,1782331844000,-472.55,0.000438,120]
[426373288,1782331844000,-472.55,0.000448,120]
[426373296,1782331844000,-624.15444567,0.00045,120]
[426373287,1782331844000,-152.77327118,0.00044794,14]
[426373299,1782331844000,-495.5,0.00045234,120]
[426373300,1782331844000,-472.55,0.000453,120]
[426373297,1782331844000,-15000.0,0.00045,120]
[426373290,1782331844000,-472.07551091,0.00045,120]
[426373277,1782331844000,-1000.0,0.000438,90]
[426373293,1782331844000,-1022.88805164,0.00045,120]
[426373289,1782331844000,-495.5,0.0004482,120]
[426373282,1782331844000,-1016.0,0.00044,60]
[426373263,1782331844000,-3074.317037,0.000427,28]
[426373273,1782331844000,-472.55,0.000428,120]
[426373294,1782331844000,-210.85161191,0.00045,120]
[426373262,1782331844000,-8890.202669,0.000427,120]
[426373265,1782331844000,-3074.317037,0.000427,28]